bitfinex-derivatives/quotes_BTCF0:USTF0_20251225
["timestamp","ask_amount","ask_price","bid_price","bid_amount"]
[1766700351765,0.057,87879.0,87847.0,0.057]
[1766700351964,0.057,87879.0,87855.0,0.0113902]
[1766700352168,0.057,87879.0,87859.0,0.0113897]
[1766700352368,7.826e-05,87878.0,87859.0,0.0113897]
[1766700354864,0.4,87877.0,87848.0,0.0082133]
[1766700355064,0.00017065,87887.0,87810.0,0.0968]
[1766700355065,0.0259774,87876.0,87810.0,0.0968]
[1766700355270,5e-08,87855.0,87830.0,0.1026527]
[1766700355471,7.826e-05,87854.0,87846.0,0.0113914]
[1766700355666,5e-08,87855.0,87836.0,0.0113927]
[1766700356181,5e-08,87855.0,87837.0,0.00017075]
[1766700356771,5e-08,87855.0,87838.0,0.0113925]
[1766700358675,5e-08,87855.0,87842.0,0.0113919]
[1766700359172,5e-08,87855.0,87837.0,0.00017075]
[1766700359382,0.15438489,87895.0,87837.0,0.00017075]
[1766700359383,0.0113874,87878.0,87851.0,0.0113908]
[1766700359672,0.0113874,87878.0,87834.0,0.0968]
[1766700359673,0.011388,87873.0,87847.0,0.0113912]
[1766700359880,0.0113882,87871.0,87847.0,0.0113912]
[1766700360274,0.0113882,87871.0,87850.0,0.00017075]
[1766700360572,0.00017075,87868.0,87850.0,0.01156165]
[1766700361875,0.09697075,87868.0,87850.0,0.01156165]
[1766700363878,0.09697075,87868.0,87850.0,0.00017075]
[1766700364579,0.00017075,87868.0,87857.0,0.01139]
[1766700364980,0.00017075,87868.0,87859.0,0.0113896]
[1766700366569,0.00017075,87868.0,87850.0,0.00017075]
[1766700366570,0.15388,87880.0,87864.0,0.011389]
[1766700366983,0.0113873,87879.0,87860.0,0.0113895]
[1766700367478,0.00017075,87878.0,87861.0,0.00017075]
[1766700367685,0.0113875,87877.0,87861.0,0.00017075]
[1766700368192,0.00017075,87878.0,87861.0,0.01156025]
[1766700369677,0.2005,87889.0,87862.0,0.05708]
[1766700369878,0.0968,87895.0,87876.0,0.0113875]
[1766700370084,0.0968,87895.0,87878.0,0.0113872]
[1766700370275,0.0968,87895.0,87880.0,0.0113869]
[1766700370584,0.0968,87895.0,87881.0,0.0113869]
[1766700370790,0.0968,87895.0,87883.0,0.0113865]
[1766700372590,0.0968,87895.0,87879.0,0.00017075]
[1766700372887,0.00017075,87897.0,87879.0,0.00017075]
[1766700373490,0.00017075,87897.0,87883.0,0.0113865]
[1766700373880,0.00017075,87897.0,87880.0,0.011387]
[1766700374488,0.00017075,87897.0,87879.0,0.00017075]
[1766700375487,0.00017075,87897.0,87879.0,0.01155785]
[1766700376484,0.00017075,87897.0,87881.0,0.0113868]
[1766700376686,0.00017075,87897.0,87883.0,0.0113866]
[1766700377386,0.0968,87902.0,87879.0,0.00017075]
[1766700377693,0.02728209,87901.0,87879.0,0.00017075]
[1766700377893,0.02728209,87900.0,87879.0,0.00017075]
[1766700378193,0.00017075,87898.0,87881.0,0.0113869]
[1766700378398,0.00017075,87898.0,87883.0,0.0113866]
[1766700378594,0.00017075,87898.0,87884.0,0.0968]
[1766700380489,0.00017075,87898.0,87885.0,0.0684663]
[1766700382896,0.00017075,87898.0,87887.0,0.0113861]
[1766700383192,0.00017075,87898.0,87891.0,0.0113855]
[1766700383892,0.00017075,87898.0,87888.0,0.0113859]
[1766700384686,0.00017075,87898.0,87885.0,0.05708]
[1766700385297,0.00017075,87898.0,87888.0,0.0113859]
[1766700388111,0.00017075,87898.0,87889.0,0.01137]
[1766700391815,0.00017075,87898.0,87888.0,0.0097559]
[1766700393111,0.00017075,87898.0,87890.0,0.0113857]
[1766700393310,0.05708,87908.0,87885.0,0.05708]
[1766700393508,0.02733809,87907.0,87885.0,0.05708]
[1766700393709,0.02733809,87906.0,87896.0,0.0113849]
[1766700393910,0.05708,87908.0,87897.0,0.0113847]
[1766700394310,0.05708,87908.0,87894.0,0.0113851]
[1766700395213,0.05708,87908.0,87896.0,0.0113849]
[1766700395612,0.1026709,87910.0,87893.0,0.0684253]
[1766700395808,0.1026709,87910.0,87895.0,0.0113851]
[1766700396613,0.0876709,87910.0,87895.0,0.0113851]
[1766700397023,0.0876709,87910.0,87894.0,0.0968]
[1766700397324,0.0876709,87910.0,87895.0,0.011385]
[1766700398928,0.0876709,87910.0,87895.0,0.007385]
[1766700402620,0.0113833,87909.0,87894.0,0.0968]
[1766700402821,0.1026709,87904.0,87894.0,0.0968]
[1766700403017,0.0113833,87909.0,87894.0,0.0968]
[1766700403928,0.1026709,87904.0,87870.0,0.1026709]
[1766700404227,0.00017064,87911.0,87883.0,0.0113866]
[1766700404228,0.1026709,87900.0,87883.0,0.0113866]
[1766700404429,0.1026709,87900.0,87884.0,0.15384]
[1766700405118,0.1026709,87894.0,87884.0,0.15384]
[1766700406627,0.1026709,87894.0,87883.0,0.0113866]
[1766700406928,0.1026709,87894.0,87885.0,0.05704]
[1766700408625,0.1026709,87894.0,87883.0,0.0113866]
[1766700408819,0.1026709,87894.0,87884.0,0.15384]
[1766700409930,0.1026709,87894.0,87885.0,0.15384]
[1766700410330,0.1026709,87894.0,87886.0,0.15384]
[1766700410730,0.0113844,87901.0,87886.0,0.15384]
[1766700410932,0.1026709,87896.0,87886.0,0.15384]
[1766700415838,0.0113844,87901.0,87886.0,0.15384]
[1766700416039,0.1295673,87900.0,87886.0,0.15384]
[1766700416230,0.0268964,87899.0,87886.0,0.15384]
[1766700418940,0.0268964,87899.0,87887.0,0.15384]
[1766700421347,0.0113849,87897.0,87887.0,0.15384]
[1766700421538,0.0268964,87896.0,87887.0,0.15384]
[1766700421741,0.0268964,87896.0,87870.0,0.01138]
[1766700421933,0.1026709,87890.0,87880.0,0.0968]
[1766700422132,0.1026709,87890.0,87881.0,0.05704]
[1766700422338,0.1026709,87890.0,87882.0,0.05704]
[1766700422646,0.1026709,87890.0,87878.0,0.00707011]
[1766700423243,0.0113865,87885.0,87874.0,0.0968]
[1766700423444,0.011387,87881.0,87872.0,0.05704]
[1766700423748,0.1026709,87884.0,87872.0,0.05704]
[1766700423749,0.1026709,87882.0,87872.0,0.05704]
[1766700426345,0.1026709,87882.0,87873.0,0.01138]
[1766700426544,0.0113862,87887.0,87873.0,0.01138]
[1766700429550,0.1026709,87883.0,87873.0,0.01138]
[1766700430454,0.1026709,87883.0,87873.0,0.0227678]
[1766700431248,0.05704,87889.0,87873.0,0.0227678]
[1766700433556,0.02688003,87888.0,87873.0,0.0227678]
[1766700433755,0.05704,87889.0,87873.0,0.0227678]
[1766700434059,0.02688003,87888.0,87873.0,0.0227678]
[1766700434254,0.05704,87889.0,87873.0,0.0227678]
[1766700434447,0.02687954,87888.0,87873.0,0.0227678]
[1766700434650,0.05704,87889.0,87873.0,0.0227678]
[1766700434948,0.02687954,87888.0,87873.0,0.0227678]
[1766700435149,0.05704,87889.0,87873.0,0.0227678]
[1766700435345,0.02687956,87888.0,87873.0,0.0227678]
[1766700435560,0.05704,87889.0,87873.0,0.0227678]
[1766700435762,0.02687936,87888.0,87873.0,0.0227678]
[1766700436059,0.05704,87889.0,87873.0,0.0227678]
[1766700436260,0.02687957,87888.0,87873.0,0.0227678]
[1766700436460,0.05704,87889.0,87873.0,0.0227678]
[1766700436654,0.02687955,87888.0,87873.0,0.0227678]
[1766700436855,0.05704,87889.0,87873.0,0.0227678]
[1766700437054,0.02687955,87888.0,87873.0,0.0227678]
[1766700437257,0.05704,87889.0,87873.0,0.0227678]
[1766700437456,0.02687987,87888.0,87873.0,0.0227678]
[1766700437660,0.011386,87888.0,87873.0,0.01138]
[1766700438259,0.02687987,87887.0,87873.0,0.01138]
[1766700438452,0.1026709,87883.0,87873.0,0.01138]
[1766700440363,0.05704,87884.0,87873.0,0.01138]
[1766700440560,0.1026709,87883.0,87873.0,0.01138]
[1766700443982,0.05704,87884.0,87873.0,0.01138]
[1766700446586,0.0684265,87884.0,87873.0,0.01138]
[1766700447383,0.05704,87884.0,87873.0,0.01138]
[1766700452283,0.02692378,87883.0,87873.0,0.01138]
[1766700452487,0.05704,87884.0,87873.0,0.01138]
[1766700452682,0.02692378,87883.0,87873.0,0.01138]
[1766700452882,0.05704,87884.0,87873.0,0.01138]
[1766700453185,0.0269238,87883.0,87873.0,0.01138]
[1766700453389,0.05704,87884.0,87873.0,0.01138]
[1766700453583,0.02692828,87883.0,87873.0,0.01138]
[1766700453888,0.05704,87884.0,87873.0,0.01138]
[1766700454090,0.02692964,87883.0,87873.0,0.01138]
[1766700454280,0.02692964,87882.0,87873.0,0.01138]
[1766700454480,0.05704,87884.0,87873.0,0.01138]
[1766700454481,0.02692964,87881.0,87873.0,0.01138]
[1766700454682,0.05704,87884.0,87873.0,0.0227679]
[1766700454885,0.00017064,87894.0,87873.0,0.01138]
[1766700455386,0.00017064,87894.0,87872.0,0.05704]
[1766700456294,0.00017064,87894.0,87876.0,0.0113875]
[1766700456589,0.00017064,87894.0,87877.0,0.0968]
[1766700456790,0.00017064,87894.0,87871.0,0.00017064]
[1766700456985,0.00017064,87894.0,87872.0,0.05704]
[1766700457490,0.0113861,87888.0,87872.0,0.05704]
[1766700457691,0.0684261,87888.0,87872.0,0.05704]
[1766700458488,0.0684261,87888.0,87873.0,0.01138]
[1766700464391,0.05704,87888.0,87873.0,0.01138]
[1766700464789,0.05704,87888.0,87873.0,0.0227679]
[1766700465597,0.05704,87888.0,87875.0,0.0113876]
[1766700466789,0.02673449,87887.0,87875.0,0.0113876]
[1766700466989,0.02673449,87886.0,87875.0,0.0113876]
[1766700467204,0.05704,87888.0,87875.0,0.0113876]
[1766700467406,0.02673436,87887.0,87875.0,0.0113876]
[1766700467593,0.02673436,87886.0,87875.0,0.0113876]
[1766700467789,0.05704,87888.0,87875.0,0.0113876]
[1766700468001,0.02673437,87887.0,87875.0,0.0113876]
[1766700468194,0.02673437,87886.0,87875.0,0.0113876]
[1766700468394,0.05704,87888.0,87875.0,0.0113876]
[1766700468602,0.02673429,87887.0,87875.0,0.0113876]
[1766700468801,0.02673429,87886.0,87875.0,0.0113876]
[1766700469003,0.05704,87888.0,87875.0,0.0113876]
[1766700469202,0.02673475,87887.0,87875.0,0.0113876]
[1766700469404,0.02673475,87886.0,87875.0,0.0113876]
[1766700469598,0.05704,87888.0,87875.0,0.0113876]
[1766700469801,0.02673477,87887.0,87875.0,0.0113876]
[1766700470003,0.02673477,87886.0,87875.0,0.0113876]
[1766700470202,0.05704,87888.0,87875.0,0.0113876]
[1766700470402,0.02673478,87887.0,87875.0,0.0113876]
[1766700470603,0.02673478,87886.0,87875.0,0.0113876]
[1766700470801,0.05704,87888.0,87875.0,0.0113876]
[1766700470997,0.02673513,87887.0,87873.0,0.01138]
[1766700471204,0.0968,87892.0,87878.0,0.0113872]
[1766700479023,0.0968,87892.0,87880.0,0.0113869]
[1766700480317,0.0968,87892.0,87881.0,0.01137]
[1766700480922,0.0968,87892.0,87882.0,0.0113868]
[1766700481123,0.0968,87892.0,87881.0,0.01137]
[1766700482113,0.0968,87892.0,87881.0,0.0227569]
[1766700483327,0.02662011,87891.0,87881.0,0.0227569]
[1766700483515,0.02662011,87890.0,87881.0,0.0227569]
[1766700483715,0.02662011,87889.0,87881.0,0.0227569]
[1766700483919,0.02662011,87888.0,87881.0,0.0227569]
[1766700484121,0.0968,87892.0,87881.0,0.0227569]
[1766700486031,0.0968,87892.0,87881.0,0.0127569]
[1766700486329,0.0968,87892.0,87881.0,0.0113869]
[1766700489231,0.05717064,87894.0,87888.0,0.011386]
[1766700489439,0.05717064,87894.0,87886.0,0.0113862]
[1766700489640,0.05717064,87894.0,87883.0,0.0113865]
[1766700491035,0.05717064,87894.0,87875.0,0.0113876]
[1766700491239,0.057,87899.0,87885.0,0.0113863]
[1766700492145,0.057,87899.0,87887.0,0.0113861]
[1766700494644,0.057,87899.0,87889.0,0.0113858]
[1766700496240,0.02645135,87898.0,87889.0,0.0113858]
[1766700496434,0.02645135,87897.0,87889.0,0.0113858]
[1766700496631,0.02645135,87896.0,87889.0,0.0113858]
[1766700496838,0.02645135,87895.0,87889.0,0.0113858]
[1766700497043,0.057,87899.0,87889.0,0.0113858]
[1766700497044,0.02645135,87894.0,87889.0,0.0113858]
[1766700497245,0.02645135,87893.0,87889.0,0.0113858]
[1766700497439,5e-08,87892.0,87889.0,0.0113858]
[1766700497638,0.057,87899.0,87889.0,0.0113858]
[1766700498041,0.057,87899.0,87881.0,0.0968]
[1766700498346,0.057,87899.0,87889.0,0.0113858]
[1766700499343,0.00017064,87901.0,87889.0,0.0113858]
[1766700499548,0.057,87900.0,87889.0,0.0113858]
[1766700499949,0.057,87900.0,87886.0,0.0113862]
[1766700504653,0.057,87900.0,87888.0,0.011386]
[1766700505950,0.1596804,87900.0,87888.0,0.011386]
[1766700508555,0.1596804,87900.0,87885.0,0.0113863]
[1766700509350,0.1596804,87900.0,87887.0,0.0113861]
[1766700509556,0.0263401,87899.0,87887.0,0.0113861]
[1766700509855,0.0263401,87898.0,87887.0,0.0113861]
[1766700510057,0.0263401,87897.0,87887.0,0.0113861]
[1766700510359,0.0263401,87896.0,87881.0,0.0968]
[1766700510556,0.0263401,87895.0,87886.0,0.0113862]
[1766700510756,0.0263401,87894.0,87886.0,0.0113862]
[1766700510958,0.0263401,87893.0,87886.0,0.0113862]
[1766700511160,0.0263401,87892.0,87886.0,0.0113862]
[1766700511352,0.0263401,87891.0,87886.0,0.0113862]
[1766700511652,0.0263401,87890.0,87886.0,0.0113862]
[1766700511852,0.1596804,87900.0,87886.0,0.0113862]
[1766700512059,0.02634079,87899.0,87886.0,0.0113862]
[1766700512254,0.02634079,87898.0,87886.0,0.0113862]
[1766700512455,0.02634079,87897.0,87886.0,0.0113862]
[1766700512652,0.02634079,87896.0,87886.0,0.0113862]
[1766700512854,0.02634079,87895.0,87886.0,0.0113862]
[1766700513055,0.02634079,87894.0,87886.0,0.0113862]
[1766700513256,0.02634079,87893.0,87886.0,0.0113862]
[1766700513452,0.02634079,87892.0,87886.0,0.0113862]
[1766700513659,0.02634079,87891.0,87886.0,0.0113862]
[1766700513859,0.1596804,87900.0,87886.0,0.0113862]
[1766700517567,0.1596804,87900.0,87881.0,0.0968]
[1766700519868,0.1596804,87900.0,87884.0,0.0113865]
[1766700520076,0.1026804,87894.0,87881.0,0.04744]
[1766700520276,0.0113858,87890.0,87880.0,0.0968]
[1766700520569,0.0113858,87890.0,87873.0,0.0968]
[1766700521271,0.1026804,87891.0,87873.0,0.1081879]
[1766700522270,0.114066,87891.0,87873.0,0.1081879]
[1766700523869,0.1026804,87891.0,87873.0,0.1081879]
[1766700525472,0.1026804,87891.0,87877.0,0.0113874]
[1766700525970,0.02617214,87890.0,87877.0,0.0113874]
[1766700526268,0.02617214,87889.0,87877.0,0.0113874]
[1766700526571,0.02617214,87888.0,87877.0,0.0113874]
[1766700526868,0.02617214,87887.0,87877.0,0.0113874]
[1766700527069,0.1026804,87891.0,87877.0,0.0113874]
[1766700527369,0.02617043,87890.0,87877.0,0.0113874]
[1766700527567,0.02617043,87889.0,87877.0,0.0113874]
[1766700527764,0.02617043,87888.0,87877.0,0.0113874]
[1766700527966,0.02617043,87887.0,87877.0,0.0113874]
[1766700528167,0.1026804,87891.0,87877.0,0.0113874]
[1766700528370,0.02616976,87890.0,87877.0,0.0113874]
[1766700528569,0.02616976,87889.0,87877.0,0.0113874]
[1766700528764,0.02616976,87888.0,87877.0,0.0113874]
[1766700528963,0.02616976,87887.0,87877.0,0.0113874]
[1766700529264,0.1026804,87891.0,87877.0,0.0113874]
[1766700529463,0.0261693,87890.0,87877.0,0.0113874]
[1766700529664,0.0261693,87889.0,87877.0,0.0113874]
[1766700529858,0.0261693,87888.0,87877.0,0.0113874]
[1766700530053,0.0261693,87887.0,87877.0,0.0113874]
[1766700530258,0.1026804,87891.0,87877.0,0.0113874]
[1766700530458,0.02616898,87890.0,87877.0,0.0113874]
[1766700530758,0.02616898,87889.0,87877.0,0.0113874]
[1766700530961,0.02616898,87888.0,87877.0,0.0113874]
[1766700531160,0.02616898,87887.0,87877.0,0.0113874]
[1766700531361,0.1026804,87891.0,87877.0,0.0113874]
[1766700531568,0.02616872,87890.0,87877.0,0.0113874]
[1766700531769,0.02616872,87889.0,87877.0,0.0113874]
[1766700531970,0.02616872,87888.0,87877.0,0.0113874]
[1766700532171,0.02616872,87887.0,87877.0,0.0113874]
[1766700532473,0.1026804,87891.0,87877.0,0.0113874]
[1766700532674,0.0261685,87890.0,87877.0,0.0113874]
[1766700532972,0.0261685,87889.0,87877.0,0.0113874]
[1766700533173,0.0261685,87888.0,87877.0,0.0113874]
[1766700533373,0.0261685,87887.0,87877.0,0.0113874]
[1766700533577,0.1026804,87891.0,87877.0,0.0113874]
[1766700533872,0.02616834,87890.0,87877.0,0.0113874]
[1766700534076,0.02616834,87889.0,87877.0,0.0113874]
[1766700534374,0.02616834,87888.0,87877.0,0.0113874]
[1766700534562,0.02616834,87887.0,87877.0,0.0113874]
[1766700534765,0.1026804,87891.0,87877.0,0.0113874]
[1766700534965,0.02616826,87890.0,87877.0,0.0113874]
[1766700535166,0.02616826,87889.0,87877.0,0.0113874]
[1766700535367,0.02616826,87888.0,87877.0,0.0113874]
[1766700535667,0.02616826,87887.0,87877.0,0.0113874]
[1766700535976,0.057,87889.0,87877.0,0.0113874]
[1766700536179,0.02616831,87888.0,87877.0,0.0113874]
[1766700536368,0.057,87889.0,87877.0,0.0113874]
[1766700536567,0.02616841,87888.0,87877.0,0.0113874]
[1766700536768,0.057,87889.0,87877.0,0.0113874]
[1766700537067,0.02616841,87888.0,87877.0,0.0113874]
[1766700537268,0.057,87889.0,87877.0,0.0113874]
[1766700537478,0.02616858,87888.0,87878.0,0.00139]
[1766700537670,0.057,87889.0,87878.0,0.00139]
[1766700537870,0.02616855,87888.0,87878.0,0.00139]
[1766700538079,0.057,87889.0,87878.0,0.00139]
[1766700538275,0.02616876,87888.0,87878.0,0.00139]
[1766700538473,0.057,87889.0,87878.0,0.00139]
[1766700538672,0.02616875,87888.0,87878.0,0.00139]
[1766700538873,0.057,87889.0,87878.0,0.00139]
[1766700539073,0.02616874,87888.0,87878.0,0.00139]
[1766700539274,0.057,87889.0,87878.0,0.00139]
[1766700539474,0.02616904,87888.0,87878.0,0.00139]
[1766700539775,0.057,87889.0,87878.0,0.00139]
[1766700539974,0.02616907,87888.0,87878.0,0.00139]
[1766700540174,0.057,87889.0,87878.0,0.00139]
[1766700540387,0.02616929,87888.0,87878.0,0.00139]
[1766700540589,0.057,87889.0,87878.0,0.00139]
[1766700540787,0.02616926,87888.0,87878.0,0.00139]
[1766700541085,0.057,87889.0,87878.0,0.00139]
[1766700541286,0.02616973,87888.0,87878.0,0.00139]
[1766700541485,0.057,87889.0,87878.0,0.00139]
[1766700541676,0.02616973,87888.0,87878.0,0.00139]
[1766700541878,0.057,87889.0,87878.0,0.00139]
[1766700542077,0.02616975,87888.0,87878.0,0.00139]
[1766700542276,0.057,87889.0,87878.0,0.00139]
[1766700542481,0.02617029,87888.0,87878.0,0.00139]
[1766700542683,0.057,87889.0,87878.0,0.00139]
[1766700542876,0.02617031,87888.0,87878.0,0.00139]
[1766700543077,0.057,87889.0,87878.0,0.00139]
[1766700543276,0.02617096,87888.0,87878.0,0.00139]
[1766700543476,0.057,87889.0,87878.0,0.00139]
[1766700543679,0.02617094,87888.0,87878.0,0.00139]
[1766700543883,0.057,87889.0,87878.0,0.00139]
[1766700544083,0.02617096,87888.0,87878.0,0.00139]
[1766700544277,0.02617175,87887.0,87878.0,0.00139]
[1766700544470,0.057,87889.0,87878.0,0.00139]
[1766700544670,0.02617174,87888.0,87878.0,0.00139]
[1766700544870,0.02617174,87887.0,87878.0,0.00139]
[1766700545075,0.057,87889.0,87878.0,0.00139]
[1766700545287,0.0261727,87888.0,87878.0,0.00139]
[1766700545482,0.0261727,87887.0,87878.0,0.00139]
[1766700545687,0.057,87889.0,87878.0,0.00139]
[1766700545981,0.02617266,87888.0,87878.0,0.00139]
[1766700546177,0.02617266,87887.0,87878.0,0.00139]
[1766700546486,0.02617266,87886.0,87878.0,0.00139]
[1766700546671,0.057,87889.0,87878.0,0.00139]
[1766700546876,0.02617376,87888.0,87878.0,0.00139]
[1766700547075,0.02617376,87887.0,87878.0,0.00139]
[1766700547276,0.02617376,87886.0,87878.0,0.00139]
[1766700547477,0.057,87889.0,87878.0,0.00139]
[1766700547682,0.02617502,87888.0,87878.0,0.00139]
[1766700547883,0.02617502,87887.0,87878.0,0.00139]
[1766700548076,0.02617502,87886.0,87878.0,0.00139]
[1766700548282,0.02617502,87885.0,87878.0,0.00139]
[1766700548489,0.057,87889.0,87878.0,0.00139]
[1766700548688,0.02617663,87888.0,87878.0,0.00139]
[1766700548889,0.02617663,87887.0,87878.0,0.00139]
[1766700549086,0.057,87889.0,87878.0,0.00139]
[1766700549087,0.02617663,87886.0,87878.0,0.00139]
[1766700549389,0.02617663,87885.0,87878.0,0.00139]
[1766700549590,0.057,87889.0,87878.0,0.00139]
[1766700549791,0.026179,87888.0,87878.0,0.00139]
[1766700549990,0.026179,87887.0,87878.0,0.00139]
[1766700550290,0.026179,87886.0,87878.0,0.00139]
[1766700550491,0.026179,87885.0,87878.0,0.00139]
[1766700550688,0.057,87889.0,87878.0,0.00139]
[1766700550883,0.02618409,87888.0,87878.0,0.00139]
[1766700551083,0.02618409,87887.0,87878.0,0.00139]
[1766700551283,0.02618409,87886.0,87878.0,0.00139]
[1766700551484,0.02618409,87885.0,87878.0,0.00139]
[1766700551687,0.0683859,87889.0,87878.0,0.00139]
[1766700551884,0.02618409,87888.0,87878.0,0.00139]
[1766700552085,0.02618409,87887.0,87878.0,0.00139]
[1766700552294,0.02618409,87886.0,87878.0,0.00139]
[1766700552592,0.02618409,87885.0,87878.0,0.00139]
[1766700552794,0.0683859,87889.0,87878.0,0.00139]
[1766700552990,0.02626542,87888.0,87878.0,0.00139]
[1766700553189,0.02626542,87887.0,87878.0,0.00139]
[1766700553384,0.02626542,87886.0,87878.0,0.00139]
[1766700553683,0.02626542,87885.0,87878.0,0.00139]
[1766700553883,0.0683859,87889.0,87878.0,0.00139]
[1766700554084,0.02626559,87888.0,87878.0,0.00139]
[1766700554286,0.02626559,87887.0,87878.0,0.00139]
[1766700554486,0.0683859,87889.0,87878.0,0.00139]
[1766700554687,0.02626572,87888.0,87878.0,0.00139]
[1766700554886,0.02626572,87887.0,87878.0,0.00139]
[1766700555089,0.057,87889.0,87878.0,0.00139]
[1766700555385,0.02626586,87888.0,87878.0,0.00139]
[1766700555684,0.02626586,87887.0,87878.0,0.00139]
[1766700555886,0.057,87889.0,87878.0,0.00139]
[1766700556087,0.02626601,87888.0,87878.0,0.00139]
[1766700556385,0.02626601,87887.0,87878.0,0.00139]
[1766700556682,0.057,87889.0,87878.0,0.00139]
[1766700556886,0.02626605,87888.0,87878.0,0.00139]
[1766700557085,0.057,87889.0,87878.0,0.00139]
[1766700557086,0.02626605,87887.0,87878.0,0.00139]
[1766700557291,0.057,87889.0,87878.0,0.00139]
[1766700557494,0.02626605,87888.0,87878.0,0.00139]
[1766700557692,0.02626605,87887.0,87878.0,0.00139]
[1766700557893,0.057,87889.0,87878.0,0.00139]
[1766700558093,0.02626603,87888.0,87878.0,0.00139]
[1766700558294,0.02626603,87887.0,87878.0,0.00139]
[1766700558496,0.057,87889.0,87878.0,0.00139]
[1766700558698,0.02626605,87888.0,87878.0,0.00139]
[1766700558892,0.02626605,87887.0,87878.0,0.00139]
[1766700559093,0.057,87889.0,87878.0,0.00139]
[1766700559398,0.02626607,87888.0,87873.0,0.0968]
[1766700559702,0.02626607,87887.0,87873.0,0.0968]
[1766700559895,0.057,87889.0,87873.0,0.0968]
[1766700560199,0.02626607,87888.0,87873.0,0.0968]
[1766700560387,0.02626607,87887.0,87873.0,0.0968]
[1766700560588,0.057,87889.0,87873.0,0.0968]
[1766700560784,0.02626605,87888.0,87873.0,0.0968]
[1766700560990,0.02626605,87887.0,87873.0,0.0968]
[1766700561190,0.057,87889.0,87873.0,0.0968]
[1766700561386,0.02626604,87888.0,87873.0,0.0968]
[1766700561591,0.02626604,87887.0,87872.0,0.057]
[1766700561792,0.02626604,87886.0,87872.0,0.057]
[1766700561994,0.057,87889.0,87872.0,0.057]
[1766700562194,0.1026804,87882.0,87857.0,0.0968]
[1766700562395,0.1026804,87880.0,87858.0,0.057]
[1766700562594,0.02626563,87879.0,87858.0,0.057]
[1766700562795,0.02626563,87878.0,87858.0,0.057]
[1766700562999,0.02626563,87877.0,87858.0,0.057]
[1766700563194,0.05717064,87876.0,87859.0,0.00017064]
[1766700563395,0.05717064,87876.0,87860.0,0.0113896]
[1766700563903,0.05717064,87876.0,87862.0,0.0113893]
[1766700571205,0.05717064,87876.0,87859.0,0.01156044]
[1766700572510,0.06855824,87876.0,87859.0,0.00017064]
[1766700574002,0.06855824,87876.0,87859.0,6.4e-07]
[1766700577118,0.0113879,87874.0,87859.0,6.4e-07]
[1766700577414,0.0113882,87872.0,87859.0,6.4e-07]
[1766700578009,0.0113884,87870.0,87859.0,6.4e-07]
[1766700578222,0.0113893,87863.0,87850.0,0.0968]
[1766700578423,0.05717064,87876.0,87836.0,0.242]
[1766700578424,0.05717064,87876.0,87851.0,0.1538]
[1766700578619,0.0113891,87865.0,87852.0,0.0968]
[1766700579130,0.0113893,87863.0,87850.0,0.00017075]
[1766700579329,0.0113897,87860.0,87844.0,0.1538]
[1766700579830,0.0113897,87860.0,87844.0,0.1651916]
[1766700582631,0.0113892,87864.0,87846.0,0.0113914]
[1766700583628,0.068389,87866.0,87849.0,0.0113909]
[1766700585720,0.057,87866.0,87849.0,0.0113909]
[1766700586123,0.057,87866.0,87846.0,0.0113914]
[1766700588527,0.00017075,87867.0,87853.0,0.0113905]
[1766700588828,0.00017075,87867.0,87855.0,0.0113902]
[1766700589527,0.00017075,87867.0,87853.0,0.057]
[1766700589925,0.00017075,87867.0,87855.0,0.0113902]
[1766700592132,0.00017075,87867.0,87853.0,0.057]
[1766700592736,0.00017075,87867.0,87854.0,0.0113904]
[1766700594337,0.02628373,87866.0,87854.0,0.0113904]
[1766700594541,0.00017075,87867.0,87854.0,0.0113904]
[1766700594736,0.02628373,87866.0,87854.0,0.0113904]
[1766700595039,0.00017075,87867.0,87854.0,0.0113904]
[1766700595341,0.02628466,87866.0,87854.0,0.0113904]
[1766700595636,0.00017075,87867.0,87854.0,0.0113904]
[1766700595840,0.02628466,87866.0,87854.0,0.0113904]
[1766700596035,0.00017075,87867.0,87854.0,0.0113904]
[1766700596239,0.02628585,87866.0,87854.0,0.0113904]
[1766700596439,0.02628585,87865.0,87854.0,0.0113904]
[1766700596640,0.00017075,87867.0,87854.0,0.0113904]
[1766700596835,0.02628534,87866.0,87854.0,0.0113904]
[1766700597031,0.00017075,87867.0,87854.0,0.0113904]
[1766700597232,0.02628254,87866.0,87856.0,0.0113901]
[1766700597433,0.00017075,87867.0,87856.0,0.0113901]
[1766700597638,0.02628267,87866.0,87856.0,0.0113901]
[1766700597832,0.00017075,87867.0,87856.0,0.0113901]
[1766700598039,0.02628269,87866.0,87856.0,0.0113901]
[1766700598239,0.00017075,87867.0,87856.0,0.0113901]
[1766700598442,0.02628467,87866.0,87856.0,0.0113901]
[1766700598742,0.02628177,87865.0,87856.0,0.0113901]
[1766700598945,0.00017075,87867.0,87856.0,0.0113901]
[1766700599144,0.02628158,87866.0,87856.0,0.0113901]
[1766700599344,0.02628158,87865.0,87856.0,0.0113901]
[1766700599640,0.02628404,87864.0,87853.0,0.057]
[1766700599944,0.00017075,87867.0,87853.0,0.057]
[1766700600135,0.02628378,87866.0,87853.0,0.057]
[1766700600336,0.02628378,87865.0,87853.0,0.057]
[1766700600540,0.02628378,87864.0,87853.0,0.057]
[1766700600742,0.00017075,87867.0,87853.0,0.057]
[1766700600940,0.02628384,87866.0,87853.0,0.057]
[1766700601145,0.02628384,87865.0,87853.0,0.057]
[1766700601444,0.02628384,87864.0,87853.0,0.057]
[1766700601647,0.03767314,87863.0,87846.0,0.0113914]
[1766700601846,0.03767324,87862.0,87847.0,0.057]
[1766700602045,0.02628384,87861.0,87843.0,0.00017075]
[1766700602344,0.00017075,87867.0,87848.0,0.057]
[1766700602638,0.02628904,87866.0,87848.0,0.057]
[1766700602848,0.0113892,87864.0,87848.0,0.057]
[1766700603048,0.0113895,87862.0,87848.0,0.057]
[1766700603346,0.02628904,87861.0,87848.0,0.057]
[1766700604148,0.02629702,87860.0,87847.0,0.057]
[1766700604364,0.0113891,87865.0,87847.0,0.057]
[1766700604646,0.02629711,87864.0,87848.0,0.0113912]
[1766700604844,0.02629711,87863.0,87848.0,0.0113912]
[1766700605039,0.00017075,87867.0,87850.0,0.0113909]
[1766700605240,0.02630226,87866.0,87850.0,0.0113909]
[1766700605444,0.02630226,87865.0,87850.0,0.0113909]
[1766700605644,0.02630226,87864.0,87850.0,0.0113909]
[1766700605945,0.02630226,87863.0,87850.0,0.0113909]